[Event "SixDays Budapest IM-B 10-2024"]
[Site "Budapest"]
[Date "2024.10.01"]
[Round "2.2"]
[White "Nanditha V"]
[Black "To, Nhat Minh"]
[Result "1/2-1/2"]
[ECO "C47"]
[WhiteElo "1903"]
[BlackElo "2300"]
[Annotator "RC"]
[PlyCount "30"]
[EventDate "2024.09.24"]
[EventType "tourn"]
[EventCountry "HUN"]
[SourceTitle "playchess.com"]
[Source "ChessBase"]
[SourceQuality "1"]
[TimeControl "5400+30"]

1. e4 {[%emt 0:00:02]} e5 {[%emt 0:07:00]} 2. Nf3 {[%emt 0:00:11]} Nc6 {[%emt 0:00:06]} 3. Nc3 {[%emt 0:00:04]} Nf6 {[%emt 0:00:09]} 4. d4 {[%emt 0:00:10]} exd4 {[%emt 0:00:07]} 5. Nxd4 {[%emt 0:00:02]} Bb4 {[%emt 0:00:12]} 6. Nxc6 {[%emt 0:00:19]} bxc6 {[%emt 0:00:26]} 7. Bd3 {[%emt 0:00:05]} d5 {[%emt 0:00:35]} 8. exd5 {[%emt 0:00:04]} cxd5 {[%emt 0:00:10]} 9. O-O {[%emt 0:00:12]} O-O {[%emt 0:00:18]} 10. h3 {[%emt 0:00:17]} Rb8 {[%emt 0:01:09]} 11. Bg5 {[%emt 0:00:50]} c6 {[%emt 0:01:44]} 12. Qf3 {[%emt 0:03:22]} Bd6 {[%emt 0:02:40]} 13. Rab1 {[%emt 0:03:11]} h6 {[%emt 0:00:25]} 14. Bxf6 {[%emt 0:01:55]} Qxf6 {[%emt 0:00:08]} 15. Qxf6 {[%emt 0:00:21]} gxf6 {[%emt 0:00:11]} 1/2-1/2

[Event "SixDays Budapest IM-B 10-2024"]
[Site "Budapest"]
[Date "2024.10.01"]
[Round "2.3"]
[White "Kalosha, Zhiulien Oleksii"]
[Black "Nemeth, Zalan"]
[Result "1/2-1/2"]
[ECO "B32"]
[WhiteElo "2232"]
[BlackElo "2211"]
[Annotator "RC"]
[PlyCount "42"]
[EventDate "2024.09.24"]
[EventType "tourn"]
[EventCountry "HUN"]
[SourceTitle "playchess.com"]
[Source "ChessBase"]
[SourceQuality "1"]
[TimeControl "5400+30"]

1. e4 {[%emt 0:00:04]} c5 {[%emt 0:06:18]} 2. Nf3 {[%emt 0:00:16]} Nc6 {[%emt 0:00:14]} 3. d4 {[%emt 0:00:29]} cxd4 {[%emt 0:00:20]} 4. Nxd4 {[%emt 0:00:20]} e5 {[%emt 0:00:21]} 5. Nb5 {[%emt 0:01:06]} d6 {[%emt 0:00:05]} 6. c4 {[%emt 0:00:48]} g6 {[%emt 0:00:47]} 7. N1c3 {[%emt 0:01:22]} a6 {[%emt 0:00:11]} 8. Na3 {[%emt 0:00:22]} Bg7 {[%emt 0:00:12]} 9. Nc2 {[%emt 0:02:11]} Nf6 {[%emt 0:00:43]} 10. f3 {[%emt 0:03:13]} Be6 {[%emt 0:00:30]} 11. Be3 {[%emt 0:01:19]} O-O {[%emt 0:00:22]} 12. Qd2 {[%emt 0:01:08]} Rc8 {[%emt 0:10:20]} 13. O-O-O {[%emt 0:01:53]} Nd4 {[%emt 0:03:24]} 14. Nxd4 {[%emt 0:03:46]} exd4 {[%emt 0:00:13]} 15. Bxd4 {[%emt 0:00:24]} Bxc4 {[%emt 0:00:37]} 16. Bxc4 {[%emt 0:01:46]} Rxc4 {[%emt 0:00:06]} 17. Rhe1 {[%emt 0:00:42]} b5 {[%emt 0:08:59]} 18. Kb1 {[%emt 0:02:54]} Re8 {[%emt 0:13:44]} 19. Nd5 Nxd5 {[%emt 0:10:45]} 20. Bxg7 {[%emt 0:36:36]} Kxg7 {[%emt 0:01:36]} 21. Qxd5 {[%emt 0:00:14]} Qc7 {[%emt 0:03:07]} 1/2-1/2

[Event "SixDays Budapest IM-B 10-2024"]
[Site "Budapest"]
[Date "2024.10.01"]
[Round "2.5"]
[White "Bhagat Kush"]
[Black "Md Imran"]
[Result "1-0"]
[ECO "A40"]
[WhiteElo "2245"]
[BlackElo "2337"]
[Annotator "RC"]
[PlyCount "111"]
[EventDate "2024.09.24"]
[EventType "tourn"]
[EventCountry "HUN"]
[SourceTitle "playchess.com"]
[Source "ChessBase"]
[SourceQuality "1"]
[TimeControl "5400+30"]

1. d4 {[%emt 0:06:32]} g6 {[%emt 0:05:36]} 2. Nf3 {[%emt 0:04:11]} Bg7 {[%emt 0:01:50]} 3. Bf4 {[%emt 0:01:58]} d6 {[%emt 0:01:42]} 4. e3 {[%emt 0:07:03]} Nf6 {[%emt 0:03:11]} 5. Be2 {[%emt 0:00:08]} O-O {[%emt 0:00:20]} 6. h3 {[%emt 0:00:04]} c5 {[%emt 0:02:11]} 7. c3 {[%emt 0:00:42]} Qb6 {[%emt 0:00:07]} 8. Qb3 {[%emt 0:01:57]} Be6 {[%emt 0:01:12]} 9. Qxb6 {[%emt 0:00:06]} axb6 {[%emt 0:00:03]} 10. a3 {[%emt 0:00:08]} Nc6 {[%emt 0:00:03]} 11. Nbd2 {[%emt 0:00:44]} h6 {[%emt 0:09:21]} 12. O-O {[%emt 0:08:09]} d5 {[%emt 0:00:47]} 13. Ne5 {[%emt 0:11:16]} Nd7 {[%emt 0:01:16]} 14. Nxd7 {[%emt 0:00:49]} Bxd7 {[%emt 0:00:02]} 15. Bc7 {[%emt 0:11:50]} cxd4 {[%emt 0:03:27]} 16. exd4 {[%emt 0:03:25]} Nxd4 {[%emt 0:00:17]} 17. cxd4 {[%emt 0:00:58]} Bxd4 {[%emt 0:00:03]} 18. Nf3 {[%emt 0:08:11]} Bxb2 {[%emt 0:02:02]} 19. Rab1 {[%emt 0:02:57]} Bxa3 {[%emt 0:00:40]} 20. Bxb6 {[%emt 0:05:42]} Bc6 {[%emt 0:02:23]} 21. Ne5 {[%emt 0:01:02]} Bd6 {[%emt 0:01:46]} 22. Nxc6 {[%emt 0:00:47]} bxc6 {[%emt 0:00:03]} 23. Rfc1 {[%emt 0:00:05]} Rfc8 {[%emt 0:00:29]} 24. Bc5 {[%emt 0:00:56]} Bf4 {[%emt 0:12:12]} 25. Rc2 {[%emt 0:00:40]} Kf8 {[%emt 0:01:26]} 26. g3 {[%emt 0:00:31]} Be5 {[%emt 0:00:47]} 27. Be3 {[%emt 0:02:43]} Kg7 {[%emt 0:02:00]} 28. Bf3 {[%emt 0:03:51]} e6 {[%emt 0:06:13]} 29. Rbc1 {[%emt 0:01:01]} Ra1 {[%emt 0:01:30]} 30. Rxa1 {[%emt 0:02:51]} Bxa1 {[%emt 0:00:02]} 31. Bb6 {[%emt 0:00:25]} Kf6 {[%emt 0:02:26]} 32. Be2 {[%emt 0:00:06]} Ke5 {[%emt 0:08:32]} 33. Ba6 {[%emt 0:00:06]} Ra8 {[%emt 0:00:35]} 34. Bb7 {[%emt 0:02:49]} Ra3 {[%emt 0:00:41]} 35. Bxc6 {[%emt 0:00:09]} Bc3 {[%emt 0:00:32]} 36. Bc5 {[%emt 0:06:06]} Ra1+ {[%emt 0:01:10]} 37. Kg2 {[%emt 0:00:01]} d4 {[%emt 0:00:09]} 38. Be7 {[%emt 0:00:08]} Re1 {[%emt 0:01:53]} 39. Kf3 {[%emt 0:02:35]} Kf5 {[%emt 0:03:55]} 40. g4+ {[%emt 0:01:29]} Ke5 {[%emt 0:00:04]} 41. Re2+ {[%emt 0:02:48]} Rxe2 {[%emt 0:00:02]} 42. Kxe2 {[%emt 0:00:02]} f5 {[%emt 0:00:40]} 43. g5 {[%emt 0:00:52]} hxg5 {[%emt 0:01:17]} 44. Bxg5 {[%emt 0:00:02]} Kd6 {[%emt 0:04:37]} 45. Be8 {[%emt 0:00:01]} e5 {[%emt 0:00:07]} 46. Bxg6 {[%emt 0:00:04]} Ke6 {[%emt 0:00:03]} 47. f3 {[%emt 0:00:36]} Bb4 {[%emt 0:00:23]} 48. h4 {[%emt 0:00:52]} Bf8 {[%emt 0:00:06]} 49. Kd3 {[%emt 0:00:13]} Bg7 {[%emt 0:00:12]} 50. Kc4 {[%emt 0:00:57]} Bf6 {[%emt 0:00:14]} 51. Be8 {[%emt 0:03:15]} Ke7 {[%emt 0:01:09]} 52. Bb5 {[%emt 0:01:00]} Kf7 {[%emt 0:02:07]} 53. Bxf6 {[%emt 0:00:06]} Kxf6 {[%emt 0:00:07]} 54. Kd5 {[%emt 0:00:09]} e4 {[%emt 0:00:26]} 55. f4 {[%emt 0:00:01]} d3 {[%emt 0:00:11]} 56. h5 {[%emt 0:00:14]} 1-0

[Event "SixDays Budapest IM-B 10-2024"]
[Site "Budapest"]
[Date "2024.10.01"]
[Round "3.1"]
[White "Gatineau, Yovann"]
[Black "Nanditha V"]
[Result "1-0"]
[ECO "E73"]
[WhiteElo "2400"]
[BlackElo "1903"]
[Annotator "RC"]
[PlyCount "49"]
[EventDate "2024.09.24"]
[EventType "tourn"]
[EventCountry "HUN"]
[SourceTitle "playchess.com"]
[Source "ChessBase"]
[SourceQuality "1"]
[TimeControl "5400+30"]

1. d4 {[%emt 0:05:59]} Nf6 {[%emt 0:00:47]} 2. c4 {[%emt 0:00:13]} g6 {[%emt 0:00:30]} 3. Nc3 {[%emt 0:00:05]} Bg7 {[%emt 0:00:04]} 4. e4 {[%emt 0:00:04]} d6 {[%emt 0:00:03]} 5. Be2 {[%emt 0:00:19]} O-O {[%emt 0:00:14]} 6. Be3 {[%emt 0:00:03]} e5 {[%emt 0:08:47]} 7. d5 {[%emt 0:00:19]} c6 {[%emt 0:03:55]} 8. g4 {[%emt 0:01:46]} cxd5 {[%emt 0:03:02]} 9. cxd5 {[%emt 0:00:07]} Ne8 {[%emt 0:02:06]} 10. Bd3 {[%emt 0:02:37]} f5 {[%emt 0:06:31]} 11. gxf5 {[%emt 0:00:09]} gxf5 {[%emt 0:00:16]} 12. exf5 {[%emt 0:00:05]} Bxf5 {[%emt 0:04:35]} 13. Bxf5 {[%emt 0:00:18]} Rxf5 {[%emt 0:00:05]} 14. Nf3 {[%emt 0:01:05]} Nd7 {[%emt 0:05:15]} 15. Rg1 {[%emt 0:00:58]} Nc5 {[%emt 0:01:54]} 16. Ng5 {[%emt 0:04:25]} h6 {[%emt 0:21:59]} 17. Nge4 {[%emt 0:02:21]} Nxe4 {[%emt 0:03:14]} 18. Nxe4 {[%emt 0:00:07]} Qh4 {[%emt 0:16:52]} 19. Qg4 {[%emt 0:05:37]} Qxg4 {[%emt 0:00:07]} 20. Rxg4 {[%emt 0:00:05]} Nf6 {[%emt 0:04:30]} 21. Nxf6+ {[%emt 0:01:25]} Rxf6 {[%emt 0:00:54]} 22. Rc1 {[%emt 0:00:31]} Kf8 {[%emt 0:01:29]} 23. Ke2 {[%emt 0:01:34]} a6 {[%emt 0:00:09]} 24. Rcg1 {[%emt 0:00:13]} Rf7 {[%emt 0:01:40]} 25. Rxg7 {[%emt 0:00:11]} 1-0

[Event "SixDays Budapest IM-B 10-2024"]
[Site "Budapest"]
[Date "2024.10.01"]
[Round "3.2"]
[White "Md Imran"]
[Black "Kao, Jamison Edrich"]
[Result "1-0"]
[ECO "A01"]
[WhiteElo "2337"]
[BlackElo "2125"]
[Annotator "RC"]
[PlyCount "121"]
[EventDate "2024.09.24"]
[EventType "tourn"]
[EventCountry "HUN"]
[SourceTitle "playchess.com"]
[Source "ChessBase"]
[SourceQuality "1"]
[TimeControl "5400+30"]

1. b3 {[%emt 0:02:47]} Nf6 {[%emt 0:00:20]} 2. Bb2 {[%emt 0:00:06]} g6 {[%emt 0:00:05]} 3. g3 {[%emt 0:00:10]} Bg7 {[%emt 0:00:05]} 4. Bg2 {[%emt 0:00:04]} O-O {[%emt 0:00:07]} 5. Nf3 {[%emt 0:00:21]} d6 {[%emt 0:00:08]} 6. O-O {[%emt 0:00:31]} e5 {[%emt 0:00:21]} 7. d3 {[%emt 0:00:03]} Re8 {[%emt 0:01:33]} 8. c4 {[%emt 0:00:45]} c6 {[%emt 0:00:44]} 9. Qc2 {[%emt 0:03:27]} h6 {[%emt 0:06:03]} 10. Nbd2 {[%emt 0:02:23]} Nbd7 {[%emt 0:03:26]} 11. Ne4 {[%emt 0:00:46]} Nf8 {[%emt 0:03:52]} 12. Ba3 {[%emt 0:05:56]} c5 {[%emt 0:00:29]} 13. Nxf6+ {[%emt 0:02:49]} Qxf6 {[%emt 0:01:07]} 14. b4 {[%emt 0:00:42]} Qe7 {[%emt 0:03:40]} 15. bxc5 {[%emt 0:05:52]} dxc5 {[%emt 0:00:04]} 16. Nd2 {[%emt 0:01:03]} Rb8 {[%emt 0:06:02]} 17. Ne4 {[%emt 0:01:27]} b6 {[%emt 0:02:19]} 18. Nc3 {[%emt 0:01:02]} Be6 {[%emt 0:02:10]} 19. Rab1 {[%emt 0:00:20]} Qd7 {[%emt 0:01:38]} 20. Nd5 {[%emt 0:01:45]} Bh3 {[%emt 0:03:53]} 21. Bc1 {[%emt 0:00:45]} Kh7 {[%emt 0:01:56]} 22. a4 {[%emt 0:00:23]} Bxg2 {[%emt 0:01:40]} 23. Kxg2 {[%emt 0:00:02]} Ne6 {[%emt 0:00:59]} 24. e4 {[%emt 0:01:51]} f5 {[%emt 0:01:44]} 25. Bd2 {[%emt 0:02:54]} f4 {[%emt 0:07:03]} 26. f3 {[%emt 0:01:17]} h5 {[%emt 0:02:25]} 27. gxf4 {[%emt 0:00:57]} Rf8 {[%emt 0:01:17]} 28. fxe5 {[%emt 0:03:40]} Bxe5 {[%emt 0:00:39]} 29. Be3 {[%emt 0:00:29]} Bd4 {[%emt 0:07:40]} 30. Bxd4 {[%emt 0:04:13]} cxd4 {[%emt 0:00:32]} 31. Kh1 {[%emt 0:01:57]} Rf7 {[%emt 0:06:49]} 32. a5 {[%emt 0:02:11]} Rbf8 {[%emt 0:00:20]} 33. axb6 {[%emt 0:00:02]} axb6 {[%emt 0:00:28]} 34. e5 {[%emt 0:02:35]} Nf4 {[%emt 0:07:15]} 35. Nf6+ {[%emt 0:00:37]} Rxf6 {[%emt 0:00:03]} 36. exf6 {[%emt 0:00:05]} Rxf6 {[%emt 0:00:02]} 37. Rbe1 {[%emt 0:01:47]} Qh3 {[%emt 0:01:29]} 38. Qd2 {[%emt 0:03:41]} g5 {[%emt 0:03:19]} 39. Rf2 {[%emt 0:02:28]} Qf5 {[%emt 0:00:15]} 40. Re4 {[%emt 0:00:39]} Qc5 {[%emt 0:10:26]} 41. Rf1 {[%emt 0:00:54]} b5 {[%emt 0:03:28]} 42. Qa5 {[%emt 0:01:54]} Qf5 {[%emt 0:03:10]} 43. Qa7+ {[%emt 0:02:01]} Kg6 {[%emt 0:04:32]} 44. Qxd4 {[%emt 0:00:14]} Qh3 {[%emt 0:00:15]} 45. Rf2 {[%emt 0:00:39]} bxc4 {[%emt 0:01:02]} 46. dxc4 {[%emt 0:00:45]} Ra6 {[%emt 0:01:33]} 47. Re1 {[%emt 0:01:51]} h4 {[%emt 0:01:09]} 48. Qe4+ {[%emt 0:00:20]} Kh6 {[%emt 0:00:12]} 49. Qd4 {[%emt 0:00:45]} Kg6 {[%emt 0:01:00]} 50. c5 {[%emt 0:00:31]} Ra3 {[%emt 0:01:04]} 51. Rg1 {[%emt 0:01:28]} Qf5 {[%emt 0:01:03]} 52. Qd6+ {[%emt 0:01:38]} Kh5 {[%emt 0:00:44]} 53. c6 {[%emt 0:03:08]} Nh3 {[%emt 0:00:18]} 54. Qxa3 {[%emt 0:04:40]} Nxf2+ {[%emt 0:00:06]} 55. Kg2 {[%emt 0:00:03]} Nd3 {[%emt 0:02:52]} 56. Qd6 {[%emt 0:08:53]} h3+ {[%emt 0:00:49]} 57. Kg3 {[%emt 0:00:01]} Nf4 {[%emt 0:00:38]} 58. Qd7 {[%emt 0:05:20]} Ne2+ {[%emt 0:00:25]} 59. Kf2 {[%emt 0:00:05]} Qc5+ {[%emt 0:00:09]} 60. Kxe2 {[%emt 0:00:04]} Qxg1 {[%emt 0:00:01]} 61. Qh7# {[%emt 0:00:05]} 1-0

[Event "SixDays Budapest IM-B 10-2024"]
[Site "Budapest"]
[Date "2024.10.01"]
[Round "3.3"]
[White "Fodor, Balazs"]
[Black "Bhagat Kush"]
[Result "1/2-1/2"]
[ECO "E73"]
[WhiteElo "2240"]
[BlackElo "2245"]
[Annotator "RC"]
[PlyCount "42"]
[EventDate "2024.09.24"]
[EventType "tourn"]
[EventCountry "HUN"]
[SourceTitle "playchess.com"]
[Source "ChessBase"]
[SourceQuality "1"]
[TimeControl "5400+30"]

1. d4 Nf6 {[%emt 0:12:14]} 2. c4 {[%emt 0:00:12]} g6 {[%emt 0:00:04]} 3. Nc3 {[%emt 0:00:05]} Bg7 {[%emt 0:00:06]} 4. e4 {[%emt 0:00:06]} d6 {[%emt 0:00:04]} 5. Be2 {[%emt 0:00:05]} O-O {[%emt 0:00:07]} 6. h3 {[%emt 0:00:05]} e5 {[%emt 0:01:32]} 7. d5 {[%emt 0:00:07]} Na6 {[%emt 0:02:32]} 8. Bg5 {[%emt 0:00:08]} c6 {[%emt 0:04:46]} 9. Nf3 {[%emt 0:00:25]} cxd5 {[%emt 0:02:08]} 10. cxd5 {[%emt 0:03:25]} Nc5 {[%emt 0:08:52]} 11. Nd2 {[%emt 0:00:46]} a5 {[%emt 0:03:18]} 12. a4 {[%emt 0:10:43]} h6 {[%emt 0:12:41]} 13. Be3 {[%emt 0:01:29]} b6 {[%emt 0:00:07]} 14. Qc2 {[%emt 0:09:57]} Ne8 {[%emt 0:00:37]} 15. g4 {[%emt 0:08:04]} f5 {[%emt 0:00:41]} 16. gxf5 {[%emt 0:06:51]} gxf5 {[%emt 0:00:08]} 17. Rg1 {[%emt 0:07:11]} Qh4 {[%emt 0:11:12]} 18. O-O-O {[%emt 0:07:33]} f4 {[%emt 0:13:25]} 19. Nf3 {[%emt 0:05:35]} Qe7 {[%emt 0:07:14]} 20. Bxc5 {[%emt 0:00:22]} bxc5 {[%emt 0:00:08]} 21. h4 {[%emt 0:04:19]} Nf6 {[%emt 0:02:20]} 1/2-1/2

[Event "SixDays Budapest IM-B 10-2024"]
[Site "Budapest"]
[Date "2024.10.01"]
[Round "3.4"]
[White "Nemeth, Zalan"]
[Black "Horvath, David"]
[Result "1/2-1/2"]
[ECO "D35"]
[WhiteElo "2211"]
[BlackElo "2327"]
[Annotator "RC"]
[PlyCount "23"]
[EventDate "2024.09.24"]
[EventType "tourn"]
[EventCountry "HUN"]
[SourceTitle "playchess.com"]
[Source "ChessBase"]
[SourceQuality "1"]
[TimeControl "5400+30"]

1. d4 {[%emt 0:05:45]} Nf6 {[%emt 0:00:08]} 2. c4 {[%emt 0:00:14]} e6 {[%emt 0:00:08]} 3. Nc3 {[%emt 0:00:06]} d5 {[%emt 0:00:05]} 4. cxd5 {[%emt 0:00:11]} exd5 {[%emt 0:00:06]} 5. Bg5 {[%emt 0:00:54]} c6 {[%emt 0:00:15]} 6. e3 {[%emt 0:00:21]} h6 {[%emt 0:07:07]} 7. Bh4 {[%emt 0:00:06]} Be7 {[%emt 0:00:04]} 8. Bd3 {[%emt 0:00:08]} O-O {[%emt 0:01:37]} 9. Nf3 {[%emt 0:00:21]} Nbd7 {[%emt 0:06:14]} 10. O-O {[%emt 0:00:27]} Ne4 {[%emt 0:08:50]} 11. Bg3 {[%emt 0:07:38]} Nxg3 {[%emt 0:05:33]} 12. hxg3 {[%emt 0:01:42]} 1/2-1/2

[Event "SixDays Budapest IM-B 10-2024"]
[Site "Budapest"]
[Date "2024.10.02"]
[Round "4.1"]
[White "Kalosha, Zhiulien Oleksii"]
[Black "Gatineau, Yovann"]
[Result "1/2-1/2"]
[ECO "C08"]
[WhiteElo "2232"]
[BlackElo "2400"]
[Annotator "RC"]
[PlyCount "132"]
[EventDate "2024.09.24"]
[EventType "tourn"]
[EventCountry "HUN"]
[SourceTitle "playchess.com"]
[Source "ChessBase"]
[SourceQuality "1"]
[TimeControl "5400+30"]

1. e4 {[%emt 0:03:18]} e6 {[%emt 0:02:05]} 2. d4 {[%emt 0:00:17]} d5 {[%emt 0:00:03]} 3. Nd2 {[%emt 0:00:16]} c5 {[%emt 0:00:07]} 4. exd5 {[%emt 0:00:42]} exd5 {[%emt 0:00:07]} 5. Ngf3 {[%emt 0:00:31]} a6 {[%emt 0:00:08]} 6. Be2 {[%emt 0:01:24]} cxd4 {[%emt 0:00:47]} 7. O-O {[%emt 0:00:40]} Nf6 {[%emt 0:00:06]} 8. Re1 {[%emt 0:01:05]} Be7 {[%emt 0:00:10]} 9. Nxd4 {[%emt 0:01:36]} O-O {[%emt 0:00:18]} 10. c3 {[%emt 0:01:48]} h6 {[%emt 0:03:53]} 11. N2f3 {[%emt 0:05:23]} Nc6 {[%emt 0:03:50]} 12. h3 {[%emt 0:02:39]} Bd6 {[%emt 0:02:39]} 13. Bd3 {[%emt 0:01:19]} Bc7 {[%emt 0:02:22]} 14. Be3 {[%emt 0:03:14]} Re8 {[%emt 0:03:31]} 15. Qc2 {[%emt 0:03:28]} Qd6 {[%emt 0:06:50]} 16. Nxc6 {[%emt 0:23:14]} bxc6 {[%emt 0:00:44]} 17. Bd4 {[%emt 0:00:19]} Rf8 {[%emt 0:33:15]} 18. c4 {[%emt 0:10:42]} c5 {[%emt 0:13:28]} 19. Be5 {[%emt 0:01:29]} Qb6 {[%emt 0:01:46]} 20. Bxf6 {[%emt 0:17:37]} Qxf6 {[%emt 0:00:07]} 21. cxd5 {[%emt 0:00:04]} Rb8 {[%emt 0:01:18]} 22. Qxc5 {[%emt 0:04:09]} Bd6 {[%emt 0:00:26]} 23. Qc3 {[%emt 0:02:00]} Rxb2 {[%emt 0:02:49]} 24. Qxf6 {[%emt 0:00:25]} gxf6 {[%emt 0:00:02]} 25. Reb1 {[%emt 0:00:57]} Rb7 {[%emt 0:01:47]} 26. Bxa6 {[%emt 0:04:46]} Rxb1+ {[%emt 0:16:39]} 27. Rxb1 {[%emt 0:00:06]} Bxa6 {[%emt 0:00:44]} 28. Rb6 {[%emt 0:00:06]} Be2 {[%emt 0:00:52]} 29. Rxd6 {[%emt 0:00:09]} Bxf3 {[%emt 0:00:08]} 30. gxf3 {[%emt 0:00:05]} Ra8 {[%emt 0:02:36]} 31. Rxf6 {[%emt 0:00:47]} Rxa2 {[%emt 0:01:11]} 32. Rxh6 {[%emt 0:00:36]} Rd2 {[%emt 0:00:05]} 33. Rd6 {[%emt 0:09:57]} Kf8 {[%emt 0:00:07]} 34. Rd8+ {[%emt 0:00:56]} Ke7 {[%emt 0:00:04]} 35. Rg8 {[%emt 0:00:08]} Rxd5 {[%emt 0:00:04]} 36. Kg2 {[%emt 0:00:09]} Kf6 {[%emt 0:01:14]} 37. f4 {[%emt 0:00:26]} Rd4 {[%emt 0:00:55]} 38. Kg3 {[%emt 0:01:07]} Rd3+ {[%emt 0:00:16]} 39. f3 {[%emt 0:01:09]} Rd1 {[%emt 0:00:29]} 40. Rg4 {[%emt 0:00:28]} Kf5 {[%emt 0:01:25]} 41. Rg5+ {[%emt 0:00:06]} Kf6 {[%emt 0:00:01]} 42. Kg2 {[%emt 0:00:53]} Rd4 {[%emt 0:00:12]} 43. Kg3 {[%emt 0:00:09]} Rd1 {[%emt 0:00:06]} 44. h4 {[%emt 0:01:04]} Rg1+ {[%emt 0:00:03]} 45. Kf2 {[%emt 0:00:04]} Rh1 {[%emt 0:00:12]} 46. h5 {[%emt 0:00:06]} Rh4 {[%emt 0:00:35]} 47. Ke3 {[%emt 0:00:54]} Rh1 {[%emt 0:00:03]} 48. Ra5 {[%emt 0:00:40]} Re1+ {[%emt 0:00:27]} 49. Kf2 {[%emt 0:00:17]} Rh1 {[%emt 0:00:06]} 50. Kg2 {[%emt 0:00:14]} Rh4 {[%emt 0:00:13]} 51. Kg3 {[%emt 0:01:19]} Rh1 {[%emt 0:00:03]} 52. h6 {[%emt 0:00:34]} Kg6 {[%emt 0:03:23]} 53. Rg5+ {[%emt 0:00:12]} Kf6 {[%emt 0:00:34]} 54. Ra5 {[%emt 0:00:18]} Kg6 {[%emt 0:00:05]} 55. f5+ {[%emt 0:01:02]} Kxh6 {[%emt 0:00:42]} 56. Kf4 {[%emt 0:00:18]} Kg7 {[%emt 0:00:35]} 57. Ra6 {[%emt 0:00:16]} Rb1 {[%emt 0:00:33]} 58. Rd6 {[%emt 0:00:12]} Ra1 {[%emt 0:00:21]} 59. Rd4 {[%emt 0:00:44]} Kf6 {[%emt 0:00:06]} 60. Rd6+ {[%emt 0:00:13]} Kg7 {[%emt 0:00:04]} 61. Rc6 {[%emt 0:00:36]} Rb1 {[%emt 0:00:10]} 62. Ra6 {[%emt 0:00:47]} Rc1 {[%emt 0:00:08]} 63. Ke3 {[%emt 0:00:16]} Re1+ {[%emt 0:00:16]} 64. Kd4 {[%emt 0:00:32]} Rd1+ {[%emt 0:00:13]} 65. Ke5 {[%emt 0:00:10]} Re1+ {[%emt 0:00:05]} 66. Kf4 {[%emt 0:00:15]} Rb1 {[%emt 0:00:04]} 1/2-1/2